lending/lending_fUSD_20240603
["ID","MTS","AMOUNT","RATE_DAILY","PERIOD"]
[328436125,1717385435724,-500.0,0.00029437,4]
[328436126,1717385435733,-500.0,0.00029437,4]
[328436127,1717385435743,-500.0,0.00029437,4]
[328436128,1717385435752,-500.0,0.00029437,4]
[328436129,1717385435762,-174.16183707,0.00029437,4]
[328436130,1717385435771,-1266.2,0.00029437,4]
[328436131,1717385435781,-500.0,0.00029437,4]
[328436132,1717385435790,-956.8,0.00029437,4]
[328436133,1717385435800,-1011.66,0.00029437,4]
[328436134,1717385435809,-500.0,0.00029437,4]
[328436135,1717385435818,-500.0,0.00029437,4]
[328436136,1717385435828,-268.14806147,0.00029437,4]
[328436137,1717385435837,-502.25,0.00029437,4]
[328436138,1717385435847,-500.0,0.00029437,4]
[328436139,1717385435856,-500.0,0.00029437,4]
[328436140,1717385435866,-500.0,0.00029437,4]
[328436141,1717385435875,-3654.7,0.00029437,4]
[328436142,1717385435885,-1231.62,0.00029437,4]
[328436143,1717385435894,-879.65,0.00029437,4]
[328436144,1717385435904,-500.0,0.00029437,4]
[328436145,1717385435914,-2136.91,0.00029437,4]
[328436146,1717385435923,-1097.51,0.00029437,4]
[328436147,1717385435932,-500.0,0.00029437,4]
[328436148,1717385435941,-500.0,0.00029437,4]
[328436149,1717385435951,-2717.63,0.00029437,4]
[328436150,1717385435960,-808.15,0.00029437,4]
[328436151,1717385435971,-500.0,0.00029437,4]
[328436152,1717385435980,-500.0,0.00029437,4]
[328436153,1717385435989,-750.52,0.00029437,4]
[328436154,1717385435998,-500.0,0.00029437,4]
[328436155,1717385436008,-1479.01,0.00029437,4]
[328436156,1717385436018,-500.0,0.00029437,4]
[328436157,1717385436027,-1131.87,0.00029437,4]
[328436158,1717385436037,-826.71,0.00029437,4]
[328436159,1717385436047,-985.15,0.00029437,4]
[328436160,1717385436056,-500.0,0.00029437,4]
[328436161,1717385436065,-1332.4,0.00029437,4]
[328436162,1717385436074,-500.0,0.00029437,4]
[328436163,1717385436084,-500.0,0.00029437,4]
[328436164,1717385436093,-778.6,0.00029437,4]
[328436165,1717385436102,-374.80390981,0.00029437,4]
[328436166,1717385436112,-500.0,0.00029437,4]
[328436167,1717385436120,-587.89,0.00029437,4]
[328436168,1717385436130,-606.2,0.00029437,4]
[328436169,1717385436139,-500.0,0.00029437,4]
[328436170,1717385436148,-1036.18,0.00029437,4]
[328436171,1717385436157,-1297.88,0.00029437,4]
[328436172,1717385436166,-500.0,0.00029437,4]
[328436173,1717385436175,-500.0,0.00029437,4]
[328436174,1717385436184,-500.0,0.00029437,4]
[328436175,1717385436193,-500.0,0.00029437,4]
[328436176,1717385436203,-500.0,0.00029437,4]
[328436177,1717385436212,-500.0,0.00029437,4]
[328436178,1717385436223,-5195.62,0.00029437,4]
[328436179,1717385436234,-500.0,0.00029437,4]
[328436180,1717385436244,-580.18461873,0.00029437,4]
[328436181,1717385436253,-500.0,0.00029437,2]
[328436182,1717385436262,-500.0,0.00029437,4]
[328436183,1717385436271,-500.0,0.00029437,4]
[328436184,1717385436280,-500.0,0.00029437,4]
[328436185,1717385436289,-1530.8,0.00029437,4]
[328436186,1717385436299,-926.48,0.00029437,4]
[328436187,1717385436308,-557.86,0.00029437,4]
[328436188,1717385436318,-751.97,0.00029437,4]
[328436189,1717385436327,-500.0,0.00029437,4]
[328436190,1717385436337,-955.18,0.00029437,4]
[328436191,1717385436346,-500.0,0.00029437,4]
[328436192,1717385436355,-2458.89,0.00029437,4]
[328436193,1717385436365,-938.47,0.00029437,4]
[328436194,1717385436375,-616.91,0.00029437,4]
[328436195,1717385436384,-500.0,0.00029437,4]
[328436196,1717385436394,-261.17059101,0.00029437,4]
[328436197,1717385436404,-500.0,0.00029437,4]
[328436198,1717385436414,-500.0,0.00029437,4]
[328436199,1717385436423,-870.73,0.00029437,4]
[328436200,1717385436433,-553.99,0.00029437,4]
[328436201,1717385436442,-659.24,0.00029437,4]
[328436202,1717385436452,-1004.46,0.00029437,4]
[328436203,1717385436462,-500.0,0.00029437,4]
[328436204,1717385436472,-500.0,0.00029437,4]
[328436205,1717385436482,-621.14,0.00029437,4]
[328436206,1717385436493,-740.48,0.00029437,4]
[328436207,1717385436503,-500.0,0.00029437,4]
[328436208,1717385436512,-500.0,0.00029437,4]
[328436209,1717385436522,-14516.578271,0.00029438,2]
[328436210,1717385436532,-20566.364066,0.00029438,2]
[328436211,1717385436541,-959.189229,0.00029438,2]
[328436212,1717385436551,-228.221224,0.00029438,2]
[328436213,1717385436560,-691.162982,0.00029438,2]
[328436214,1717385436570,-615.484435,0.00029438,2]
[328436215,1717385436580,-32150.82439,0.00029438,2]
[328436216,1717385436589,-5635.757654,0.00029438,2]
[328436217,1717385436599,-8057.747021,0.00029438,2]
[328436218,1717385436609,-342.659554,0.00029438,2]
[328436219,1717385436618,-212.784752,0.00029438,2]
[328436220,1717385436628,-6373.53549707,0.00029443,2]
[328436221,1717385436638,-175.806095,0.00029489,2]
[328436222,1717385436647,-175.623863,0.00029489,2]
[328436223,1717385436657,-1487.00968991,0.00029611,2]
[328436224,1717385436666,-500.0,0.00029621,4]
[328436225,1717385436676,-16463.67,0.00029621,4]
[328436226,1717385436686,-500.0,0.00029621,4]
[328436227,1717385436695,-617.31,0.00029621,4]
[328436228,1717385436705,-1804.15,0.00029621,4]
[328436229,1717385436715,-1952.08,0.00029621,4]
[328436230,1717385436725,-500.0,0.00029621,4]
[328436231,1717385436735,-500.0,0.00029621,4]
[328436232,1717385436744,-869.59,0.00029621,4]
[328436233,1717385436755,-500.0,0.00029621,4]
[328436234,1717385436764,-1509.89,0.00029621,4]
[328436235,1717385436774,-1002.0,0.00029621,4]
[328436236,1717385436784,-896.63,0.00029621,4]
[328436237,1717385436794,-699.98,0.00029621,4]
[328436238,1717385436803,-821.01,0.00029621,4]
[328436239,1717385436814,-518.91,0.00029621,4]
[328436240,1717385436823,-500.0,0.00029621,4]
[328436241,1717385436833,-1598.25,0.00029621,4]
[328436242,1717385436842,-500.0,0.00029621,4]
[328436243,1717385436852,-2071.13,0.00029621,4]
[328436244,1717385436862,-2383.53,0.00029621,4]
[328436245,1717385436871,-1216.02,0.00029621,4]
[328436246,1717385436880,-613.16,0.00029621,4]
[328436247,1717385436890,-1225.37,0.00029621,4]
[328436248,1717385436900,-823.4,0.00029621,4]
[328436249,1717385436909,-1595.42,0.00029621,4]
[328436250,1717385436920,-997.47,0.00029621,4]
[328436251,1717385436929,-656.86,0.00029621,4]
[328436252,1717385436939,-1178.49,0.00029621,4]
[328436253,1717385436948,-1087.52,0.00029621,4]
[328436254,1717385436958,-729.62,0.00029621,4]
[328436255,1717385436968,-500.0,0.00029621,4]
[328436256,1717385436977,-2036.32,0.00029621,4]
[328436257,1717385436987,-500.0,0.00029621,4]
[328436258,1717385436996,-500.0,0.00029621,4]
[328436259,1717385437006,-500.0,0.00029621,4]
[328436260,1717385437015,-1685.67,0.00029621,4]
[328436261,1717385437025,-1167.72,0.00029621,4]
[328436262,1717385437034,-759.36,0.00029621,4]
[328436263,1717385437044,-500.0,0.00029621,4]
[328436264,1717385437053,-800.99,0.00029621,4]
[328436265,1717385437063,-2013.34,0.00029621,4]
[328436266,1717385437072,-1085.41,0.00029621,4]
[328436267,1717385437081,-3034.21,0.00029621,4]
[328436268,1717385437091,-1287.57,0.00029621,4]
[328436269,1717385437101,-5652.68,0.00029621,4]
[328436270,1717385437110,-597.45,0.00029621,4]
[328436271,1717385437119,-500.0,0.00029621,4]
[328436272,1717385437129,-2072.81,0.00029621,4]
[328436273,1717385437138,-500.0,0.00029621,4]
[328436274,1717385437148,-719.35,0.00029621,4]
[328436275,1717385437157,-500.0,0.00029621,4]
[328436276,1717385437167,-500.0,0.00029621,4]
[328436277,1717385437176,-529.51,0.00029621,4]
[328436278,1717385437185,-7205.7,0.00029621,4]
[328436279,1717385437195,-689.01,0.00029621,4]
[328436280,1717385437204,-500.0,0.00029621,4]
[328436281,1717385437216,-500.0,0.00029621,4]
[328436282,1717385437228,-500.0,0.00029711,4]
[328436283,1717385437237,-500.0,0.00029711,4]
[328436284,1717385437247,-500.0,0.00029711,4]
[328436285,1717385437256,-500.0,0.00029711,4]
[328436286,1717385437266,-500.0,0.00029711,4]
[328436287,1717385437275,-500.0,0.00029711,4]
[328436288,1717385437285,-500.0,0.00029711,4]
[328436289,1717385437294,-500.0,0.00029711,4]
[328436290,1717385437304,-500.0,0.00029711,4]
[328436291,1717385437313,-500.0,0.00029711,4]
[328436292,1717385437323,-500.0,0.00029711,4]
[328436293,1717385437332,-286.71308651,0.00029711,4]
[328436294,1717385437342,-500.0,0.00029711,4]
[328436295,1717385437351,-150.0,0.00029711,4]
[328436296,1717385437361,-469.56775705,0.00029711,4]
[328436297,1717385437371,-500.0,0.00029711,4]
[328436298,1717385437381,-500.0,0.00029711,4]
[328436299,1717385437390,-500.0,0.00029711,4]
[328436300,1717385437400,-500.0,0.00029711,4]
[328436301,1717385437410,-500.0,0.00029711,4]
[328436302,1717385437419,-500.0,0.00029711,4]
[328436303,1717385437429,-500.0,0.00029711,4]
[328436304,1717385437439,-500.0,0.00029711,4]
[328436305,1717385437448,-500.0,0.00029711,4]
[328436306,1717385437458,-500.0,0.00029711,4]
[328436307,1717385437468,-473.61944122,0.00029711,4]
[328436308,1717385437478,-500.0,0.00029711,4]
[328436309,1717385437487,-500.0,0.00029711,4]
[328436310,1717385437497,-500.0,0.00029711,4]
[328436311,1717385437507,-500.0,0.00029711,4]
[328436312,1717385437516,-500.0,0.00029711,4]
[328436313,1717385437526,-500.0,0.00029711,4]
[328436314,1717385437536,-500.0,0.00029711,4]
[328436315,1717385437545,-2285.8,0.00029711,4]
[328436316,1717385437555,-500.0,0.00029711,4]
[328436317,1717385437564,-500.0,0.00029711,4]
[328436318,1717385437573,-500.0,0.00029711,4]
[328436319,1717385437583,-520.22,0.00029711,4]
[328436320,1717385437592,-500.0,0.00029711,4]
[328436321,1717385437602,-2156.72,0.00029711,4]
[328436322,1717385437611,-701.97,0.00029711,4]
[328436323,1717385437621,-500.0,0.00029711,4]
[328436324,1717385437630,-500.0,0.00029711,4]
[328436325,1717385437640,-587.33746025,0.00029711,4]
[328436326,1717385437649,-528.76370866,0.00029711,4]
[328436327,1717385437659,-1266.2,0.00029711,4]
[328436328,1717385437668,-464.31098736,0.00029711,4]
[328436329,1717385437678,-956.8,0.00029711,4]
[328436330,1717385437688,-1011.66,0.00029711,4]
[328436331,1717385437697,-500.0,0.00029711,4]
[328436332,1717385437707,-500.0,0.00029711,4]
[328436333,1717385437717,-502.25,0.00029711,4]
[328436334,1717385437727,-500.0,0.00029711,4]
[328436335,1717385437736,-500.0,0.00029711,4]
[328436336,1717385437746,-500.0,0.00029711,4]
[328436337,1717385437755,-3654.7,0.00029711,4]
[328436338,1717385437764,-1231.62,0.00029711,4]
[328436339,1717385437774,-879.65,0.00029711,4]
[328436340,1717385437783,-500.0,0.00029711,4]
[328436341,1717385437793,-2136.91,0.00029711,4]
[328436342,1717385437850,-1097.51,0.00029711,4]
[328436343,1717385437860,-500.0,0.00029711,4]
[328436344,1717385437870,-500.0,0.00029711,4]
[328436345,1717385437879,-2717.63,0.00029711,4]
[328436346,1717385437889,-808.15,0.00029711,4]
[328436347,1717385437898,-500.0,0.00029711,4]
[328436348,1717385437908,-500.0,0.00029711,4]
[328436349,1717385437917,-750.52,0.00029711,4]
[328436350,1717385437926,-500.0,0.00029711,4]
[328436351,1717385437936,-1479.01,0.00029711,4]
[328436352,1717385437945,-500.0,0.00029711,4]
[328436353,1717385437955,-1131.87,0.00029711,4]
[328436354,1717385437964,-826.71,0.00029711,4]
[328436355,1717385437974,-985.15,0.00029711,4]
[328436356,1717385437983,-500.0,0.00029711,4]
[328436357,1717385437993,-1332.4,0.00029711,4]
[328436358,1717385438002,-500.0,0.00029711,4]
[328436359,1717385438011,-268.99185041,0.00029711,4]
[328436360,1717385438021,-778.6,0.00029711,4]
[328436361,1717385438030,-500.0,0.00029711,4]
[328436362,1717385438040,-587.89,0.00029711,4]
[328436363,1717385438049,-606.2,0.00029711,4]
[328436364,1717385438058,-500.0,0.00029711,4]
[328436365,1717385438067,-1036.18,0.00029711,4]
[328436366,1717385438077,-500.0,0.00029711,4]
[328436367,1717385438087,-1297.88,0.00029711,4]
[328436368,1717385438096,-500.0,0.00029711,4]
[328436369,1717385438105,-500.0,0.00029711,4]
[328436370,1717385438114,-500.0,0.00029711,4]
[328436371,1717385438124,-500.0,0.00029711,4]
[328436372,1717385438132,-500.0,0.00029711,4]
[328436373,1717385438141,-5195.62,0.00029711,4]
[328436374,1717385438151,-243.81991848,0.00029711,4]
[328436375,1717385438160,-500.0,0.00029711,2]
[328436376,1717385438169,-500.0,0.00029711,4]
[328436377,1717385438179,-500.0,0.00029711,4]
[328436378,1717385438188,-500.0,0.00029711,4]
[328436379,1717385438197,-1530.8,0.00029711,4]
[328436380,1717385438206,-926.48,0.00029711,4]
[328436382,1717385438217,-557.86,0.00029711,4]
[328436383,1717385438230,-751.97,0.00029711,4]
[328436384,1717385438239,-500.0,0.00029711,4]
[328436385,1717385438248,-955.18,0.00029711,4]
[328436386,1717385438257,-500.0,0.00029711,4]
[328436387,1717385438267,-2458.89,0.00029711,4]
[328436388,1717385438276,-938.47,0.00029711,4]
[328436389,1717385438285,-616.91,0.00029711,4]
[328436390,1717385438295,-500.0,0.00029711,4]
[328436391,1717385438309,-500.0,0.00029711,4]
[328436392,1717385438319,-500.0,0.00029711,4]
[328436393,1717385438328,-870.73,0.00029711,4]
[328436394,1717385438338,-553.99,0.00029711,4]
[328436395,1717385438347,-659.24,0.00029711,4]
[328436396,1717385438356,-1004.46,0.00029711,4]
[328436397,1717385438366,-500.0,0.00029711,4]
[328436398,1717385438375,-500.0,0.00029711,4]
[328436399,1717385438384,-621.14,0.00029711,4]
[328436400,1717385438394,-740.48,0.00029711,4]
[328436401,1717385438403,-500.0,0.00029711,4]
[328436402,1717385438412,-500.0,0.00029711,4]
[328436403,1717385438421,-800.0,0.00029781,2]
[328436404,1717385438431,-14516.578271,0.00029801,2]
[328436405,1717385438440,-20566.364066,0.00029801,2]
[328436406,1717385438449,-959.189229,0.00029801,2]
[328436407,1717385438458,-228.221224,0.00029801,2]
[328436408,1717385438468,-691.162982,0.00029801,2]
[328436409,1717385438477,-615.484435,0.00029801,2]
[328436410,1717385438487,-32150.82439,0.00029801,2]
[328436411,1717385438496,-5635.757654,0.00029801,2]
[328436412,1717385438505,-8057.747021,0.00029801,2]
[328436413,1717385438514,-342.659554,0.00029801,2]
[328436414,1717385438524,-212.784752,0.00029801,2]
[328436415,1717385438534,-26085.58238177,0.00029835,2]
[328436416,1717385438543,-1487.00968991,0.0002984,2]
[328436417,1717385438553,-175.806095,0.00029857,2]
[328436418,1717385438562,-500.0,0.00029895,4]
[328436419,1717385438572,-16463.67,0.00029895,4]
[328436420,1717385438581,-500.0,0.00029895,4]
[328436421,1717385438590,-617.31,0.00029895,4]
[328436422,1717385438600,-1804.15,0.00029895,4]
[328436423,1717385438609,-1952.08,0.00029895,4]
[328436424,1717385438619,-500.0,0.00029895,4]
[328436425,1717385438629,-500.0,0.00029895,4]
[328436426,1717385438638,-869.59,0.00029895,4]
[328436427,1717385438648,-500.0,0.00029895,4]
[328436428,1717385438657,-1509.89,0.00029895,4]
[328436429,1717385438666,-1002.0,0.00029895,4]
[328436430,1717385438675,-896.63,0.00029895,4]
[328436431,1717385438685,-699.98,0.00029895,4]
[328436432,1717385438694,-821.01,0.00029895,4]
[328436433,1717385438704,-518.91,0.00029895,4]
[328436434,1717385438713,-500.0,0.00029895,4]
[328436435,1717385438723,-1598.25,0.00029895,4]
[328436436,1717385438733,-500.0,0.00029895,4]
[328436437,1717385438742,-2071.13,0.00029895,4]
[328436438,1717385438751,-2383.53,0.00029895,4]
[328436439,1717385438760,-1216.02,0.00029895,4]
[328436440,1717385438770,-613.16,0.00029895,4]
[328436441,1717385438779,-1225.37,0.00029895,4]
[328436442,1717385438788,-823.4,0.00029895,4]
[328436443,1717385438797,-1595.42,0.00029895,4]
[328436444,1717385438806,-997.47,0.00029895,4]
[328436445,1717385438815,-656.86,0.00029895,4]
[328436446,1717385438824,-1178.49,0.00029895,4]
[328436447,1717385438834,-1087.52,0.00029895,4]
[328436448,1717385438844,-729.62,0.00029895,4]
[328436449,1717385438854,-500.0,0.00029895,4]
[328436450,1717385438864,-2036.32,0.00029895,4]
[328436451,1717385438873,-500.0,0.00029895,4]
[328436452,1717385438882,-500.0,0.00029895,4]
[328436453,1717385438892,-500.0,0.00029895,4]
[328436454,1717385438902,-1685.67,0.00029895,4]
[328436455,1717385438912,-1167.72,0.00029895,4]
[328436456,1717385438921,-759.36,0.00029895,4]
[328436457,1717385438930,-500.0,0.00029895,4]
[328436458,1717385438939,-800.99,0.00029895,4]
[328436459,1717385438949,-2013.34,0.00029895,4]
[328436460,1717385438958,-1085.41,0.00029895,4]
[328436461,1717385438967,-3034.21,0.00029895,4]
[328436462,1717385438976,-1287.57,0.00029895,4]
[328436463,1717385438986,-5652.68,0.00029895,4]
[328436464,1717385438995,-597.45,0.00029895,4]
[328436465,1717385439004,-500.0,0.00029895,4]
[328436466,1717385439014,-2072.81,0.00029895,4]
[328436467,1717385439023,-500.0,0.00029895,4]
[328436468,1717385439032,-719.35,0.00029895,4]
[328436469,1717385439042,-500.0,0.00029895,4]
[328436470,1717385439051,-500.0,0.00029895,4]
[328436471,1717385439060,-529.51,0.00029895,4]
[328436472,1717385439070,-7205.7,0.00029895,4]
[328436473,1717385439079,-689.01,0.00029895,4]
[328436474,1717385439088,-500.0,0.00029895,4]
[328436475,1717385439097,-500.0,0.00029895,4]
[328436476,1717385439107,-2009.63809376,0.000299,2]
[328436477,1717385439116,-6373.53549707,0.00029912,2]
[328436478,1717385439127,-922.22458762,0.00029982,2]
[328436479,1717385439136,-500.0,0.00029985,4]
[328436480,1717385439146,-500.0,0.00029985,4]
[328436481,1717385439156,-500.0,0.00029985,4]
[328436482,1717385439167,-500.0,0.00029985,4]
[328436483,1717385439178,-500.0,0.00029985,4]
[328436484,1717385439188,-500.0,0.00029985,4]
[328436485,1717385439198,-500.0,0.00029985,4]
[328436486,1717385439208,-500.0,0.00029985,4]
[328436487,1717385439218,-416.01944999,0.00029985,4]
[328436488,1717385439231,-310.61632183,0.00029985,4]
[328436489,1717385439240,-500.0,0.00029985,4]
[328436490,1717385439250,-500.0,0.00029985,4]
[328436491,1717385439259,-154.50386423,0.00029985,4]
[328436492,1717385439270,-500.0,0.00029985,4]
[328436493,1717385439280,-500.0,0.00029985,4]
[328436494,1717385439290,-500.0,0.00029985,4]
[328436495,1717385439300,-500.0,0.00029985,4]
[328436496,1717385439310,-500.0,0.00029985,4]
[328436497,1717385439320,-500.0,0.00029985,4]
[328436498,1717385439330,-500.0,0.00029985,4]
[328436499,1717385439340,-500.0,0.00029985,4]
[328436500,1717385439350,-500.0,0.00029985,4]
[328436501,1717385439360,-500.0,0.00029985,4]
[328436502,1717385439370,-500.0,0.00029985,4]
[328436503,1717385439380,-500.0,0.00029985,4]
[328436504,1717385439389,-500.0,0.00029985,4]
[328436505,1717385439399,-500.0,0.00029985,4]
[328436506,1717385439410,-500.0,0.00029985,4]
[328436507,1717385439420,-500.0,0.00029985,4]
[328436508,1717385439430,-500.0,0.00029985,4]
[328436509,1717385439440,-2285.8,0.00029985,4]
[328436510,1717385439450,-500.0,0.00029985,4]
[328436511,1717385439460,-500.0,0.00029985,4]
[328436512,1717385439470,-500.0,0.00029985,4]
[328436513,1717385439480,-520.22,0.00029985,4]
[328436514,1717385439489,-500.0,0.00029985,4]
[328436515,1717385439499,-2156.72,0.00029985,4]
[328436516,1717385439509,-701.97,0.00029985,4]
[328436517,1717385439519,-500.0,0.00029985,4]
[328436518,1717385439528,-500.0,0.00029985,4]
[328436519,1717385439538,-1266.2,0.00029985,4]
[328436520,1717385439548,-956.8,0.00029985,4]
[328436521,1717385439557,-1011.66,0.00029985,4]
[328436522,1717385439567,-500.0,0.00029985,4]
[328436523,1717385439577,-500.0,0.00029985,4]
[328436524,1717385439587,-502.25,0.00029985,4]
[328436525,1717385439596,-417.54687938,0.00029985,4]
[328436526,1717385439607,-500.0,0.00029985,4]
[328436527,1717385439617,-500.0,0.00029985,4]
[328436528,1717385439627,-3654.7,0.00029985,4]
[328436529,1717385439636,-1231.62,0.00029985,4]
[328436530,1717385439646,-879.65,0.00029985,4]
[328436531,1717385439655,-500.0,0.00029985,4]
[328436532,1717385439665,-2136.91,0.00029985,4]
[328436533,1717385439674,-1097.51,0.00029985,4]
[328436534,1717385439684,-500.0,0.00029985,4]
[328436535,1717385439693,-500.0,0.00029985,4]
[328436536,1717385439703,-2717.63,0.00029985,4]
[328436537,1717385439713,-808.15,0.00029985,4]
[328436538,1717385439726,-500.0,0.00029985,4]
[328436539,1717385439736,-500.0,0.00029985,4]
[328436540,1717385439745,-750.52,0.00029985,4]
[328436541,1717385439754,-500.0,0.00029985,4]
[328436542,1717385439764,-1479.01,0.00029985,4]
[328436543,1717385439774,-156.50478173,0.00029985,4]
[328436544,1717385439784,-1131.87,0.00029985,4]
[328436545,1717385439794,-826.71,0.00029985,4]
[328436546,1717385439804,-985.15,0.00029985,4]
[328436547,1717385439814,-500.0,0.00029985,4]
[328436548,1717385439824,-1332.4,0.00029985,4]
[328436549,1717385439834,-500.0,0.00029985,4]
[328436550,1717385439843,-778.6,0.00029985,4]
[328436551,1717385439854,-500.0,0.00029985,4]
[328436552,1717385439863,-587.89,0.00029985,4]
[328436553,1717385439873,-606.2,0.00029985,4]
[328436555,1717385439883,-500.0,0.00029985,4]
[328436557,1717385439893,-1036.18,0.00029985,4]
[328436558,1717385439903,-500.0,0.00029985,4]
[328436560,1717385439913,-1297.88,0.00029985,4]
[328436562,1717385439923,-500.0,0.00029985,4]
[328436564,1717385439934,-500.0,0.00029985,4]
[328436566,1717385439944,-507.47901483,0.00029985,4]
[328436567,1717385439954,-500.0,0.00029985,4]
[328436568,1717385439964,-500.0,0.00029985,4]
[328436569,1717385439976,-5195.62,0.00029985,4]
[328436570,1717385439985,-500.0,0.00029985,2]
[328436571,1717385439995,-500.0,0.00029985,4]
[328436572,1717385440005,-500.0,0.00029985,4]
[328436573,1717385440015,-500.0,0.00029985,4]
[328436574,1717385440024,-1530.8,0.00029985,4]
[328436575,1717385440035,-926.48,0.00029985,4]
[328436576,1717385440045,-557.86,0.00029985,4]
[328436577,1717385440055,-751.97,0.00029985,4]
[328436578,1717385440065,-500.0,0.00029985,4]
[328436579,1717385440075,-955.18,0.00029985,4]
[328436580,1717385440085,-500.0,0.00029985,4]
[328436581,1717385440095,-2458.89,0.00029985,4]
[328436582,1717385440104,-938.47,0.00029985,4]
[328436583,1717385440114,-616.91,0.00029985,4]
[328436584,1717385440124,-500.0,0.00029985,4]
[328436585,1717385440134,-500.0,0.00029985,4]
[328436586,1717385440143,-500.0,0.00029985,4]
[328436587,1717385440153,-870.73,0.00029985,4]
[328436588,1717385440163,-553.99,0.00029985,4]
[328436589,1717385440172,-659.24,0.00029985,4]
[328436590,1717385440181,-1004.46,0.00029985,4]
[328436591,1717385440191,-500.0,0.00029985,4]
[328436592,1717385440201,-500.0,0.00029985,4]
[328436593,1717385440211,-621.14,0.00029985,4]
[328436594,1717385440222,-740.48,0.00029985,4]
[328436595,1717385440232,-558.55028932,0.00029985,4]
[328436596,1717385440245,-500.0,0.00029985,4]
[328436597,1717385440255,-2181.29187519,0.0003,10]
[328436598,1717385440266,-172.81078302,0.00030064,2]
[328436599,1717385440276,-165.17027442,0.00030064,2]
[328436600,1717385440287,-1487.00968991,0.00030069,2]
[328436601,1717385440296,-172.78899174,0.00030084,2]
[328436602,1717385440305,-800.0,0.0003011,2]
[328436603,1717385440316,-334.04974451,0.0003011,2]
[328436604,1717385440326,-500.0,0.00030135,4]
[328436605,1717385440337,-500.0,0.00030135,4]
[328436606,1717385440346,-500.0,0.00030135,4]
[328436607,1717385440356,-500.0,0.00030135,4]
[328436609,1717385440365,-500.0,0.00030135,4]
[328436611,1717385440375,-500.0,0.00030135,4]
[328436612,1717385440385,-500.0,0.00030135,4]
[328436613,1717385440395,-500.0,0.00030135,4]
[328436615,1717385440404,-500.0,0.00030135,4]
[328436617,1717385440415,-500.0,0.00030135,4]
[328436618,1717385440424,-500.0,0.00030135,4]
[328436619,1717385440434,-500.0,0.00030135,4]
[328436620,1717385440443,-500.0,0.00030135,4]
[328436621,1717385440453,-500.0,0.00030135,4]
[328436622,1717385440463,-500.0,0.00030135,4]
[328436623,1717385440475,-500.0,0.00030135,4]
[328436624,1717385440484,-500.0,0.00030135,4]
[328436625,1717385440494,-500.0,0.00030135,4]
[328436626,1717385440504,-309.94478115,0.00030135,4]
[328436627,1717385440513,-500.0,0.00030135,4]
[328436628,1717385440523,-500.0,0.00030135,4]
[328436629,1717385440533,-500.0,0.00030135,4]
[328436630,1717385440543,-360.59026958,0.00030135,4]
[328436631,1717385440552,-500.0,0.00030135,4]
[328436632,1717385440562,-500.0,0.00030135,4]
[328436633,1717385440571,-500.0,0.00030135,4]
[328436634,1717385440581,-500.0,0.00030135,4]
[328436635,1717385440590,-500.0,0.00030135,4]